{"text_format":"1","workbook":"xlsx","n_sheets":13,"sheets":["B_mall","A_Blankett","Ett Intyg","L1","E1","K1","C1","D1","Intyg_Mall","Checklista","Manual","Setup","Flera intyg"],"not_rendered":{"charts":0,"images":8,"macros":1,"external_links":0,"defined_names":35,"comments":3,"pivot_tables":0},"unopened":[],"bounds":{"document_bytes":16777216,"sheet_cells":100000,"rows_first":2000,"rows_last":500,"rows_between":2000,"halvings":0,"cell_chars":16384,"cell_head_chars":4096},"cells_cut":0,"cells_raw":0,"read":"whole","date_system":"1900"}

{"sheet":"B_mall","index":0,"n_rows":60,"n_cols":13,"rows_kept":60,"cut":false,"hidden":false,"merged":[[4,7,4,9],[4,10,4,11],[4,12,5,12],[5,3,5,6],[5,7,5,9],[5,10,5,11],[6,3,6,6],[7,2,8,2],[7,3,7,5],[8,3,8,7],[8,8,8,9],[9,3,9,12],[10,3,10,5],[10,11,10,12],[11,3,11,5],[11,11,11,12],[12,3,12,5],[12,11,12,12],[13,3,13,5],[13,11,13,12],[14,3,14,5],[14,11,14,12],[15,3,15,5],[15,11,15,12],[16,3,16,5],[16,11,16,12],[17,3,17,5],[17,11,17,12],[18,4,18,6],[18,8,18,11],[19,5,19,6],[19,7,20,7],[19,8,20,11],[19,12,20,12],[20,5,20,6],[21,5,21,6],[21,7,22,7],[21,8,22,11],[21,12,22,12],[22,5,22,6],[23,5,23,6],[23,7,24,7],[23,8,24,11],[23,12,24,12],[24,4,24,6],[25,5,25,6],[25,7,26,7],[25,8,26,11],[25,12,26,12],[26,5,26,6],[27,5,27,6],[27,7,28,7],[27,8,28,11],[27,12,28,12],[28,5,28,6],[29,5,29,6],[29,7,30,7],[29,8,30,11],[29,12,30,12],[30,5,30,6],[31,5,31,6],[31,7,32,7],[31,8,32,11],[31,12,32,12],[32,5,32,6],[33,5,33,6],[33,7,34,7],[33,8,34,11],[33,12,34,12],[34,5,34,6],[35,4,35,6],[35,7,36,7],[35,8,36,11],[35,12,36,12],[36,5,36,6],[37,5,37,6],[37,7,38,7],[37,8,38,11],[37,12,38,12],[38,5,38,6],[39,5,39,6],[39,7,40,7],[39,8,40,11],[39,12,40,12],[40,5,40,6],[41,5,41,6],[41,7,42,7],[41,8,42,11],[41,12,42,12],[42,5,42,6],[43,5,43,6],[43,7,44,12],[44,5,44,6],[45,5,45,6],[45,7,46,12],[46,4,46,6],[47,5,47,6],[47,7,48,12],[48,5,48,6],[49,5,49,6],[49,7,50,12],[50,5,50,6],[51,5,51,6],[51,7,52,12],[52,5,52,6],[53,4,53,6],[53,7,53,8],[53,10,54,10],[53,11,54,12],[54,5,54,6],[54,7,54,8],[55,5,55,6],[55,7,55,8],[55,11,55,12],[56,5,56,6],[56,7,56,8],[56,10,56,12],[57,5,57,6],[57,7,57,8],[57,10,58,12],[58,5,58,6],[58,7,58,8]]}
[]
[]
[]
[]
[null,null,null,null,null,null,null,"Referensnummer",null,null,"Systemnummer",null,"B_mall"]
[null,null,null,"Protokoll OVK",null,null,null,{"$f":"A_Blankett!I5","v":0}]
[null,null,null,"Obligatorisk Ventilationskontroll"]
[null,null,"B1","Fastighetsbeteckning",null,null,null,null,"Internt byggnadsnr",null,"Systemtyp","Bes kat(0-2)","Resultat"]
[null,null,null,null,null,null,null,null,{"$f":"A_Blankett!F19","v":0}]
[null,null,null,"Fläktar och aggregat som ingår i det samhörande systemet"]
[null,null,"B2","Systemdel",null,null,"Fläkttyp","Inst.år","Placering","Proj.flöde l/s","Uppm flöde l/s","Betjänar"]
[null,null,1]
[null,null,2]
[null,null,3]
[null,null,4]
[null,null,5]
[null,null,6]
[null,null,7]
[null,null,"B3",1,"Handlingar",null,null,"Pos","Anmärkningar",null,null,null,"Utfall"]
[null,null,null,"1.1",null,"Ritningar"]
[null,null,null,"1.2",null,"DU-instruktioner"]
[null,null,null,"1.3",null,"Föregående OVK-protokoll"]
[null,null,null,"1.4",null,"Proj. värden/luftflödesprotokoll"]
[null,null,null,"1.5",null,"Övrigt "]
[null,null,null,2,"Föroreningar"]
[null,null,null,"2.1",null,"Uteluftskanal"]
[null,null,null,"2.2",null,"Filterdel"]
[null,null,null,"2.3",null,"Batterier"]
[null,null,null,"2.4",null,"VVX"]
[null,null,null,"2.5",null,"Fläktdel"]
[null,null,null,"2.6",null,"Kanaler"]
[null,null,null,"2.7",null,"Don"]
[null,null,null,"2.8",null,"Rensningsmöjligheter"]
[null,null,null,"2.9",null,"Fläktrum"]
[null,null,null,"2.10",null,"Övrigt"]
[null,null,null,3,"Funktioner"]
[null,null,null,"3.1",null,"Filterdel"]
[null,null,null,"3.2",null,"Batterier"]
[null,null,null,"3.3",null,"VVX"]
[null,null,null,"3.4",null,"Spjäll"]
[null,null,null,"3.5",null,"Styr/Regler/Övervakning"]
[null,null,null,"3.6",null,"Fläktar"]
[null,null,null,"3.7",null,"Luftflöden"]
[null,null,null,"3.8",null,"Kanaler",null,"Möjliga energibesparande åtgärder i systemet"]
[null,null,null,"3.9",null,"Don"]
[null,null,null,"3.10",null,"Övrigt"]
[null,null,null,4,"Klimat"]
[null,null,null,"4.1",null,"Temperatur"]
[null,null,null,"4.2",null,"Odör"]
[null,null,null,"4.3",null,"Drag"]
[null,null,null,"4.4",null,"Ljud"]
[null,null,null,"4.5",null,"Brukarsynpunkter"]
[null,null,null,"4.6",null,"Övrigt"]
[null,null,null,null,"Uppdragstyp",null,null,"Bilagor",null,"Bil.Beteckn.","Ombesiktn.     datum","Besiktningsdatum"]
[null,null,null,null,null,"1:a besiktning",null,"C: Anmärkning"]
[null,null,null,null,null,"Återkommande besiktning",null,"D: Åtgärder"]
[null,null,null,null,null,"Ombesiktning",null,"L: Flöde",null,null,"Namnteckning"]
[null,null,null,null,null,"Utökad kontroll",null,"E1: Aggregatdata"]
[null,null,null,null,null,"Egenkontroll",null,"K1: Co2 mm"]
[null,null,null,null,null,null,null,null,null,null,null,null,"PrintEnd"]

{"sheet":"A_Blankett","index":1,"n_rows":56,"n_cols":13,"rows_kept":56,"cut":false,"hidden":false,"merged":[[31,10,31,12],[18,3,18,4],[14,3,14,6],[14,7,14,8],[29,10,29,12],[30,10,30,12],[18,7,18,8],[27,10,27,12],[19,3,19,12],[28,10,28,12],[22,10,22,12],[18,5,18,6],[18,10,18,11],[21,10,21,12],[23,10,23,12],[24,10,24,12],[54,3,54,6],[53,7,53,12],[54,7,54,12],[47,3,47,6],[48,3,48,6],[48,9,48,12],[52,9,52,12],[51,9,51,12],[51,7,51,8],[52,3,52,4],[51,3,51,4],[51,5,51,6],[52,5,52,6],[52,7,52,8],[50,7,50,8],[50,10,50,12],[4,8,4,11],[9,10,9,12],[10,7,10,8],[10,10,10,12],[53,3,53,6],[34,10,34,12],[33,10,33,12],[26,10,26,12],[20,3,20,9],[20,10,20,12],[25,10,25,12],[40,3,40,12],[36,10,36,12],[36,3,36,8],[32,10,32,12],[39,3,39,12],[50,3,50,6],[37,3,37,12],[45,3,45,12],[48,7,48,8],[49,10,49,12],[47,7,47,8],[41,3,41,12],[44,3,44,12],[49,3,49,6],[43,3,43,12],[47,9,47,12],[46,3,46,12],[42,3,42,12],[38,3,38,12],[9,2,10,2],[10,3,10,6],[12,3,12,6],[16,3,16,7],[11,10,11,12],[13,10,13,12],[12,10,12,12],[12,7,12,8],[16,9,16,12],[15,9,15,12],[14,10,14,12]]}
[]
[]
[]
[]
[null,null,null,null,null,null,null,"Referens nr:",null,null,null,null,"A"]
[null,null,null,"Besiktningsprotokoll",null,null,null,"Plats för Stämpel"]
[null,null,null," Funktionskontroll av ventilationssystem enligt PBF kap 5,"]
[null,null,null," BFS 2011:16 (OVK) och BFS 2012:7 (OVKAR) med ändringar "]
[null,null,null,"A1 - Byggnad"]
[null,null,null,"Fastighetsbeteckning",null,null,null,"Byggnadens adress",null,"Postnr","Ort"]
[]
[null,null,null,"Byggnadsägaren",null,null,null,"Postadress",null,"Postnr","Ort"]
[]
[null,null,null,"Faktureringsadress",null,null,null,"Postadress",null,"Postnr","Ort"]
[]
[null,null,null,"Fastighetsansvarig/Förvaltare",null,null,null,null,"Telefonnr","Fax / e-post"]
[]
[null,null,null,"Internt byggnadsnamn",null,"Internt byggnadsnr",null,"Verksamhet",null,"BRA  i m2","Ant. Lgh",null,"Ant. lokaler"]
[]
[]
[null,null,null,"A2 - Besiktningsutlåtande (+ sammanställning av system inom byggnaden)"]
[null,null,null,"Systemnr","Bes.kat.","Besiktningsdatum","Besiktnings  resultat","Ombesiktning datum","Nästa ordinarie besiktningsdatum","Bilaga          (B-sida)","Notering"]
[null,null,{"$f":"IF(E23=1,3,IF(E23=2,6,0))","v":0},{"$f":"IFERROR(INDIRECT(J23&\"!K6\"),\"\")","v":""},{"$f":"IFERROR(INDIRECT(J23&\"!L9\"),\"\")","v":""},{"$f":"IFERROR(INDIRECT(J23&\"!L56\"),\"\")","v":""},{"$f":"IFERROR(INDIRECT(J23&\"!M9\"),\"\")","v":""},{"$f":"IFERROR(INDIRECT(J23&\"!K56\"),\"\")","v":""},{"$f":"IF(J23=\"\",\"\",IF(C23=0,\"-\",EDATE(F23,12*C23)))","v":""},{"$f":"IFERROR(INDIRECT(\"b\" &ROW(A1)&\"!M5\"),\"\")","v":""}]
[null,null,{"$f":"IF(E24=1,3,IF(E24=2,6,0))","v":0},{"$f":"IFERROR(INDIRECT(J24&\"!K6\"),\"\")","v":""},"",{"$f":"IFERROR(INDIRECT(J24&\"!L56\"),\"\")","v":""},{"$f":"IFERROR(INDIRECT(J24&\"!M9\"),\"\")","v":""},{"$f":"IFERROR(INDIRECT(J24&\"!K56\"),\"\")","v":""},{"$f":"IF(J24=\"\",\"\",IF(C24=0,\"-\",EDATE(F24,12*C24)))","v":""},{"$f":"IFERROR(INDIRECT(\"b\" &ROW(A2)&\"!M5\"),\"\")","v":""}]
[null,null,0,{"$f":"IFERROR(INDIRECT(J25&\"!K6\"),\"\")","v":""},"","",{"$f":"IFERROR(INDIRECT(J25&\"!M9\"),\"\")","v":""},{"$f":"IFERROR(INDIRECT(J25&\"!K56\"),\"\")","v":""},"",{"$f":"IFERROR(INDIRECT(\"b\" &ROW(A3)&\"!M5\"),\"\")","v":""}]
[null,null,0,"","","",{"$f":"IFERROR(INDIRECT(J26&\"!M9\"),\"\")","v":""},{"$f":"IFERROR(INDIRECT(J26&\"!K56\"),\"\")","v":""},"",{"$f":"IFERROR(INDIRECT(\"b\" &ROW(A4)&\"!M5\"),\"\")","v":""}]
[null,null,0,"","","",{"$f":"IFERROR(INDIRECT(J27&\"!M9\"),\"\")","v":""},{"$f":"IFERROR(INDIRECT(J27&\"!K56\"),\"\")","v":""},"",{"$f":"IFERROR(INDIRECT(\"b\" &ROW(A5)&\"!M5\"),\"\")","v":""}]
[null,null,0,"","","","","","",{"$f":"IFERROR(INDIRECT(\"b\" &ROW(A6)&\"!M5\"),\"\")","v":""}]
[null,null,0,"","","","","","",""]
[null,null,0,"","","","","","",""]
[null,null,0,"","","","","","",""]
[null,null,0,"","","","","","",""]
[null,null,0,"","","","","","",""]
[null,null,0,"","","","","","",""]
[null,null,0,"","","","","","",""]
[null,null,0,"",null,null,null,null,null,""]
[null,null,null,"Ingår samtliga ventilationssystem för byggnaden i denna besiktning."]
[null,null,null,"A3 - Allmänt omdöme, kommentarer, uppgifter om besiktningsman."]
[]
[]
[]
[]
[]
[]
[]
[]
[]
[null,null,null,"Besiktningsman",null,null,null,"Telefon nr",null,"Fax / e-post"]
[]
[null,null,null,"Företag",null,null,null,"Postadress",null,"Postnr","Ort"]
[]
[null,null,null,"Certiferingsorgan",null,"Cert.nummer",null,"Giltighetstid",null,"Behörighetsnivå"]
[]
[null,null,null,"Ort / Underskriftsdatum",null,null,null,"Namnteckning"]
[]
[null,null,null,null,null,null,null,null,null,"Funkis excelprotokoll",null,null,"PrintEnd"]

{"sheet":"Ett Intyg","index":2,"n_rows":35,"n_cols":13,"rows_kept":35,"cut":false,"hidden":false,"merged":[[19,4,22,9],[25,4,28,9],[13,4,13,5],[13,7,13,9],[14,4,14,5],[14,7,14,9],[15,4,15,5],[16,4,16,5],[16,7,16,8],[3,3,22,3],[3,4,3,5],[3,6,3,9],[12,4,12,9],[3,10,22,10],[4,4,4,9],[5,4,5,9],[6,4,6,9],[7,4,7,6],[7,7,7,9],[8,4,8,6],[8,7,8,9],[9,4,9,9],[11,4,11,9],[17,4,17,9],[18,4,18,9]]}
[]
[]
[null,null,"A_Blankett"]
[null,null,null,null,"INTYG"]
[null,null,null,null,"Obligatorisk funktionskontroll av ventilationssystem (OVK)"]
[null,null,null,null,"Enligt PBF kap 5, BFS 2011:16 (OVK) och BFS 2012:7 (OVKAR) med ändringar "]
[null,null,null,null,"utförts på denna byggnad"]
[null,null,null,null,"Fastighetsbeteckning",null,null,"Adress"]
[null,null,null,null,{"$f":"IFERROR(INDIRECT(C3&\"!D11\"),\"\")","v":0},null,null,{"$f":"A_Blankett!$H$11","v":0}]
[null,null,null,null,"Systemnummer"]
[null,null,null,null,{"$f":"IFERROR(INDIRECT(C3&\"!k6\"),\"\")","v":0}]
[null,null,null,null,"Besiktningsrtesultat                                          Nästa ordinarie besiktning"]
[]
[null,null,null,null,"Besiktningsman",null,"Besiktningsdatum","Nästa besiktningsdatum"]
[null,null,null,null,{"$f":"A_Blankett!$D$49","v":0},null,{"$f":"A_Blankett!$F$23","v":""},{"$f":"A_Blankett!$I$23","v":""}]
[null,null,null,null,"Företag",null,"Behörighetsnivå","Cert.organ",null,"Cert.nr"]
[null,null,null,null,{"$f":"A_Blankett!$D$51","v":0},null,{"$f":"A_Blankett!$J$53","v":0},{"$f":"A_Blankett!$D$53","v":0},null,{"$f":"A_Blankett!$F$53","v":0}]
[]
[null,null,null,null,"Protokoll finns att tillgå hos byggnadens ägare och hos kommunens byggnadsnämnd"]
[null,null,null,null,"Anm."]
[]
[]
[]
[]
[]
[null,null,null,null,"Namnteckning"]
[]
[]
[]
[]
[]
[]
[]
[]
[null,null,null,null,null,null,null,null,null,null,null,null,"PrintEnd"]

{"sheet":"L1","index":3,"n_rows":48,"n_cols":23,"rows_kept":48,"cut":false,"hidden":false,"merged":[[37,4,37,22],[38,4,38,22],[39,4,39,22],[34,4,34,7],[2,4,2,9],[4,10,4,16],[1,22,2,22],[1,17,1,21],[1,4,1,9],[2,10,2,16],[5,12,5,16],[4,17,4,21],[2,17,2,21],[1,10,1,16],[3,17,3,21],[3,4,3,9],[5,4,5,7],[3,10,3,16],[9,14,9,22],[6,12,6,16],[12,10,12,11],[15,10,15,11],[10,4,10,13],[10,14,10,22],[6,4,6,7],[14,10,14,11],[15,19,15,20],[14,17,14,18],[15,17,15,18],[13,17,13,18],[15,15,15,16],[13,12,13,13],[12,8,12,9],[14,4,14,5],[13,4,13,5],[12,22,13,22],[8,17,8,22],[12,15,12,16],[12,17,12,18],[12,6,12,7],[14,15,14,16],[13,19,13,20],[12,19,12,20],[13,15,13,16],[13,8,13,9],[8,14,8,15],[14,19,14,20],[20,10,20,11],[16,8,16,9],[20,17,20,18],[21,17,21,18],[16,15,16,16],[17,15,17,16],[21,15,21,16],[19,8,19,9],[17,8,17,9],[15,8,15,9],[14,8,14,9],[16,19,16,20],[20,19,20,20],[17,12,17,13],[18,12,18,13],[18,17,18,18],[20,15,20,16],[19,17,19,18],[17,10,17,11],[18,10,18,11],[29,19,29,20],[28,19,28,20],[27,19,27,20],[24,8,24,9],[23,12,23,13],[24,19,24,20],[21,10,21,11],[22,19,22,20],[23,19,23,20],[22,12,22,13],[23,17,23,18],[22,17,22,18],[21,19,21,20],[27,10,27,11],[26,12,26,13],[22,15,22,16],[23,15,23,16],[27,17,27,18],[26,15,26,16],[27,12,27,13],[26,10,26,11],[17,19,17,20],[18,19,18,20],[19,19,19,20],[26,17,26,18],[25,17,25,18],[25,19,25,20],[26,19,26,20],[24,17,24,18],[3,3,6,3],[18,6,18,7],[19,6,19,7],[19,4,19,5],[14,6,14,7],[15,6,15,7],[16,6,16,7],[17,4,17,5],[18,4,18,5],[16,4,16,5],[4,4,4,9],[5,8,5,11],[6,8,6,11],[8,4,8,13],[13,6,13,7],[12,4,12,5],[15,12,15,13],[12,12,12,13],[9,4,9,13],[13,10,13,11],[15,4,15,5],[21,4,21,5],[21,12,21,13],[24,12,24,13],[22,10,22,11],[24,10,24,11],[17,6,17,7],[16,12,16,13],[20,12,20,13],[16,10,16,11],[14,12,14,13],[33,8,33,9],[31,17,31,18],[32,17,32,18],[29,15,29,16],[28,12,28,13],[29,12,29,13],[33,10,33,11],[28,10,28,11],[29,17,29,18],[29,10,29,11],[28,15,28,16],[28,17,28,18],[32,10,32,11],[30,8,30,9],[32,6,32,7],[32,8,32,9],[25,12,25,13],[22,8,22,9],[21,6,21,7],[25,6,25,7],[21,8,21,9],[16,17,16,18],[18,15,18,16],[19,15,19,16],[26,6,26,7],[26,8,26,9],[24,6,24,7],[27,6,27,7],[25,10,25,11],[27,8,27,9],[30,17,30,18],[30,10,30,11],[30,15,30,16],[19,12,19,13],[17,17,17,18],[49,4,49,6],[47,9,47,15],[42,10,42,17],[29,4,29,5],[31,10,31,11],[28,4,28,5],[29,6,29,7],[30,4,30,5],[29,8,29,9],[30,6,30,7],[28,8,28,9],[31,8,31,9],[40,10,40,23],[32,15,32,16],[30,12,30,13],[33,4,33,5],[33,6,33,7],[33,15,33,16],[33,17,33,18],[33,12,33,13],[32,4,32,5],[40,4,40,7],[41,18,41,23],[32,19,32,20],[25,4,25,5],[24,15,24,16],[20,4,20,5],[25,15,25,16],[23,10,23,11],[22,6,22,7],[18,8,18,9],[19,10,19,11],[27,15,27,16],[20,8,20,9],[25,8,25,9],[23,8,23,9],[20,6,20,7],[23,6,23,7],[24,4,24,5],[23,4,23,5],[22,4,22,5],[44,4,44,7],[45,4,45,7],[46,4,46,7],[41,4,42,7],[26,4,26,5],[27,4,27,5],[31,6,31,7],[31,4,31,5],[31,19,31,20],[30,19,30,20],[33,19,33,20],[35,4,35,22],[36,4,36,22],[46,18,46,23],[31,12,31,13],[42,18,42,23],[43,10,43,17],[44,10,44,17],[45,10,45,15],[32,12,32,13],[31,15,31,16],[46,10,46,15],[41,10,41,17],[28,6,28,7]]}
[]
[null,null,null,null,"Luftflöde",null,null,null,null,null,"Referensnummer",null,null,null,null,null,null,"Systemnummer",null,null,null,null,"L1"]
[null,null,null,null,"Driftstider/Märkeffekt",null,null,null,null,null,{"$f":"A_Blankett!I5","v":0}]
[null,null,null,"L1","Fastighetsbeteckning",null,null,null,null,null,"Byggnadsnamn",null,null,null,null,null,null,"Byggnadsnr",null,null,null,null,"Sidnr."]
[null,null,null,null,null,null,null,null,null,null,{"$f":"A_Blankett!$D$19","v":0},null,null,null,null,null,null,{"$f":"A_Blankett!$F$19","v":0}]
[null,null,null,null,"Aggregatbenämning",null,null,null,"Pk (pa)",null,null,null,"Ritning",null,null,null,null,"Flödesenhet",null,"    m³/h    l/s",null,null,"Datum"]
[]
[]
[null,null,null,null,"Driftstider timmar vecka",null,null,null,null,null,null,null,null,null,"Märkeffekter"]
[]
[]
[]
[null,null,null,"L2",null,null,null,null,"Projekterad",null,"Uppmätt ",null,"% av proj",null,"Mät-","Projekterad",null,"Uppmätt",null,"% avproj",null,"Mät-","Noteringar"]
[null,null,null,null,"Rum. nr.",null,"Benämning",null,"Tilluft ",null,"Tilluft",null,"Tilluft",null,"metod","Frånluft",null,"Frånluft",null,"Frånluft",null,"metod"]
[null,null,null,1,null,null,null,null,null,null,null,null,{"$f":"IF(K15=\"\",\"\",IF(I15=\"\",\"\",K15/I15*100))","v":""},null,null,null,null,null,null,{"$f":"IF(R15=\"\",\"\",IF(P15=\"\",\"\",R15/P15*100))","v":""}]
[null,null,null,2,null,null,null,null,null,null,null,null,"",null,null,null,null,null,null,""]
[null,null,null,3,null,null,null,null,null,null,null,null,"",null,null,null,null,null,null,""]
[null,null,null,4,null,null,null,null,null,null,null,null,"",null,null,null,null,null,null,""]
[null,null,null,5,null,null,null,null,null,null,null,null,"",null,null,null,null,null,null,""]
[null,null,null,6,null,null,null,null,null,null,null,null,"",null,null,null,null,null,null,""]
[null,null,null,7,null,null,null,null,null,null,null,null,"",null,null,null,null,null,null,""]
[null,null,null,8,null,null,null,null,null,null,null,null,"",null,null,null,null,null,null,""]
[null,null,null,9,null,null,null,null,null,null,null,null,"",null,null,null,null,null,null,""]
[null,null,null,10,null,null,null,null,null,null,null,null,"",null,null,null,null,null,null,""]
[null,null,null,11,null,null,null,null,null,null,null,null,"",null,null,null,null,null,null,""]
[null,null,null,12,null,null,null,null,null,null,null,null,"",null,null,null,null,null,null,""]
[null,null,null,13,null,null,null,null,null,null,null,null,"",null,null,null,null,null,null,""]
[null,null,null,14,null,null,null,null,null,null,null,null,"",null,null,null,null,null,null,""]
[null,null,null,15,null,null,null,null,null,null,null,null,"",null,null,null,null,null,null,""]
[null,null,null,16,null,null,null,null,null,null,null,null,"",null,null,null,null,null,null,""]
[null,null,null,17,null,null,null,null,null,null,null,null,"",null,null,null,null,null,null,""]
[null,null,null,18,null,null,null,null,null,null,null,null,"",null,null,null,null,null,null,""]
[null,null,null,19,null,null,null,null,null,null,null,null,"",null,null,null,null,null,null,""]
[null,null,null,20,null,null,null,null,null,null,null,null,"",null,null,null,null,null,null,""]
[null,null,null,null,"Noteringar"]
[]
[]
[]
[]
[]
[null,null,null,null,"Mättekniker",null,null,null,null,null,"Mätmetod: ID=Kanal, ET=Frånluft, ST=Tilluft  SS-EN 16211:2015 SV"]
[null,null,null,null,null,null,null,null,null,null,"ID1, Punktvis hast.mätn.m prandtlrör ",null,null,null,null,null,null,null,"ET1, Tryckfallsmätning "]
[null,null,null,null,null,null,null,null,null,null,"ID2, Punktvis hastmätn m varmtrådsanemometer",null,null,null,null,null,null,null,"ET2, Mätn. m stosförsedd anemometer"]
[null,null,null,null,null,null,null,null,null,null,"ID3, Fasta flödesmätdon",null,null,null,null,null,null,null,"B1, Punktvis mätn m varmtrådsanemo rekt galler"]
[null,null,null,null,"Namnteckning",null,null,null,null,null,"ID4, Spårgasmätning",null,null,null,null,null,null,null,"Enligt T221998"]
[null,null,null,null,null,null,null,null,null,null,"ST1, Mätning av referenstryck"]
[null,null,null,null,null,null,null,null,null,null,"ST3, Mätning m stos, direkt metod",null,null,null,null,null,null,null,"………………………………………………………………………………….."]
[null,null,null,null,null,null,null,null,null,null,null,null,null,null,null,null,null,null,null,null,null,null,"PrintEnd"]

{"sheet":"E1","index":4,"n_rows":54,"n_cols":18,"rows_kept":54,"cut":false,"hidden":false,"merged":[[18,8,18,13],[20,9,20,10],[20,5,20,7],[28,8,28,9],[28,12,28,13],[24,5,24,7],[24,8,24,13],[21,8,21,13],[17,3,17,4],[22,5,22,7],[23,5,23,7],[20,12,20,13],[17,8,17,13],[25,5,25,7],[27,8,27,9],[27,3,27,4],[28,3,28,4],[40,16,40,17],[31,16,31,17],[32,16,32,17],[30,14,30,15],[40,5,40,7],[39,9,39,10],[40,9,40,10],[37,3,37,4],[26,10,26,11],[30,5,30,13],[31,5,31,13],[38,5,38,7],[38,8,38,13],[37,5,37,7],[35,5,35,7],[37,8,37,13],[32,5,32,13],[36,5,36,7],[36,8,36,13],[35,8,35,13],[48,3,48,4],[48,8,48,9],[44,14,49,17],[43,14,43,17],[49,3,49,4],[47,3,47,4],[47,10,47,11],[47,12,47,13],[48,12,48,13],[47,8,47,9],[43,5,43,7],[43,8,43,13],[44,8,44,13],[45,8,45,13],[41,16,41,17],[41,5,41,7],[41,8,41,13],[42,16,42,17],[26,12,26,13],[46,10,46,11],[46,12,46,13],[49,5,49,7],[49,8,49,13],[39,12,39,13],[46,8,46,9],[42,5,42,7],[40,12,40,13],[39,5,39,7],[48,10,48,11],[27,12,27,13],[42,8,42,13],[34,5,34,13],[27,10,27,11],[28,10,28,11],[29,5,29,12],[33,5,33,13],[44,5,44,7],[45,5,45,7],[22,16,22,17],[24,16,24,17],[26,8,26,9],[24,14,24,15],[23,14,23,17],[23,8,23,13],[25,8,25,13],[25,14,25,17],[26,14,28,17],[22,8,22,13],[12,16,12,17],[11,16,11,17],[8,3,8,5],[8,6,8,7],[10,5,10,13],[11,5,11,13],[12,5,12,13],[4,15,4,16],[3,8,3,14],[4,8,4,14],[5,2,6,2],[8,8,8,14],[8,15,8,17],[19,12,19,13],[20,16,20,17],[17,5,17,7],[21,5,21,7],[3,17,4,17],[6,15,6,16],[6,8,6,14],[9,5,9,12],[6,3,6,7],[3,15,3,16],[21,16,21,17],[13,5,13,13],[14,5,14,13],[19,5,19,7],[18,5,18,7],[19,9,19,10],[15,8,15,13],[16,5,16,7],[16,8,16,13],[15,5,15,7],[10,14,10,15]]}
[]
[]
[null,null,null,"Aggregatprotokoll"]
[null,null,null,null,null,null,null,null,"Referensnummer",null,null,null,null,null,null,"Systemnummer",null,"E1"]
[null,null,null,null,null,null,null,null,{"$f":"A_Blankett!$I$5","v":0}]
[null,null,"E1","Fastighetsbeteckning",null,null,null,null,"Byggnadens adress",null,null,null,null,null,null,"Byggnadsnr",null,"Sidnr."]
[null,null,null,{"$f":"A_Blankett!$D$11","v":0},null,null,null,null,{"$f":"A_Blankett!$H$11","v":0},null,null,null,null,null,null,{"$f":"A_Blankett!$F$19","v":0},null,1]
[null,null,null,"Datum",null,null,null,null,"Besiktningsman",null,null,null,null,null,null,"Signatur"]
[null,null,null,null,null,null,null,null,{"$f":"A_Blankett!$D$49","v":0}]
[null,null,null,null,null,"Tilluft"]
[null,null,"E2","Agg.benämning *",null,null,null,null,null,null,null,null,null,null,"Motordata",null,"Helfart","Delfart"]
[null,null,null,"Fabrikat",null,null,null,null,null,null,null,null,null,null,"Fabrikat, typ"]
[null,null,null,"Typ",null,null,null,null,null,null,null,null,null,null,"Varvtal n/min"]
[null,null,null,"Placering",null,null,null,null,null,null,null,null,null,null,"P Märkeffekt kW *"]
[null,null,null,"Betjänar",null,null,null,null,null,null,null,null,null,null,"Pmätt effekt kW"]
[null,null,null,null,null,"Delfart",null,null,"Helfart",null,null,null,null,null,"Märkström A"]
[null,null,null,"Drifttimmar/vecka*",null,null,null,null,null,null,null,null,null,null,"K="]
[null,null,null,null,null,"Projekterat värde",null,null,"Uppmätt värde",null,null,null,null,null,"cos φ"]
[null,null,null,"q tot l/s",null,null,null,null,null,null,null,null,null,null,"Frekvens Hz uppmätt flöde"]
[null,null,null,"pt Pa",null,null,null,null,"+",null,null,"-",null,null,"nfl Fläktvarvtal n/min"]
[null,null,null,"pk Pa",null,null,null,null,"+",null,null,"-",null,null,"Fläktskiva:diam mm"]
[null,null,null,"Dp värmebatteri Pa",null,null,null,null,null,null,null,null,null,null,"Motorskiva:diam mm"]
[null,null,null,"Dp kylbatteri Pa",null,null,null,null,null,null,null,null,null,null,"Fläkthjul, typ"]
[null,null,null,"Dp efter filter Pa",null,null,null,null,null,null,null,null,null,null,"Renblåsning Pa"]
[null,null,null,"Dp vvx Pa",null,null,null,null,null,null,null,null,null,null,"VVX TYP"]
[null,null,null,"Tillufttemp behandl °C",null,null,null,null,null,null,null,null,null,null,"Anmärkning:"]
[null,null,null,"Filter","Tot area m2",{"$f":"D30+E30","v":0},"Ant. filter","Höjd(cm)","Bredd(cm)",null,"Djup(cm)",null,"Antal påsar"]
[null,null,null,"Typ/Klass"]
[null,null,null,"Typ/Klass"]
[null,null,null,{"$f":"IF(AND(G28>0,H28>0,K28>0,M28>0,I28>0),(G28*H28*K28*2*M28+H28*I28)/10000,0)","v":0},{"$f":"IF(AND(G29>0,H29>0,K29>0,M29>0,I29>0),(G29*H29*K29*2*M29+H29*I29)/10000,0)","v":0},"Frånluft"]
[null,null,"E3","Agg.benämning *",null,null,null,null,null,null,null,null,null,null,"Motordata",null,"Helfart","Delfart"]
[null,null,null,"Fabrikat",null,null,null,null,null,null,null,null,null,null,"Fabrikat, typ"]
[null,null,null,"Typ",null,null,null,null,null,null,null,null,null,null,"Varvtal n/min"]
[null,null,null,"Placering",null,null,null,null,null,null,null,null,null,null,"P Märkeffekt kW *"]
[null,null,null,"Betjänar",null,null,null,null,null,null,null,null,null,null,"Pmätt effekt kW"]
[null,null,null,null,null,"Delfart",null,null,"Helfart",null,null,null,null,null,"Märkström A"]
[null,null,null,"Drifttimmar/vecka*",null,null,null,null,null,null,null,null,null,null,"K="]
[null,null,null,null,null,"Projekterat värde",null,null,"Uppmätt värde",null,null,null,null,null,"cos φ"]
[null,null,null,"q tot l/s",null,null,null,null,null,null,null,null,null,null,"Frekvens Hz uppmätt flöde"]
[null,null,null,"pt Pa",null,null,null,null,"+",null,null,"-",null,null,"nfl Fläktvarvtal n/min"]
[null,null,null,"pk Pa",null,null,null,null,"+",null,null,"-",null,null,"Fläktskiva:diam mm"]
[null,null,null,"Dp värmebatteri Pa",null,null,null,null,null,null,null,null,null,null,"Motorskiva:diam mm"]
[null,null,null,"Dp kylbatteri Pa",null,null,null,null,null,null,null,null,null,null,"Fläkthjul, typ"]
[null,null,null,"Dp efter filter Pa",null,null,null,null,null,null,null,null,null,null,"Anmärkning:"]
[null,null,null,"Dp vvx Pa"]
[null,null,null,"Frånlufttemp °C"]
[null,null,null,"Filter","Tot area m2",{"$f":"((G48*H48*K48*2*M48+H48*I48)+(G49*H49*K49*2*M49+H49*I49))/10000","v":0},"Ant. filter","Höjd(cm)","Bredd(cm)",null,"Djup(cm)",null,"Antal påsar"]
[null,null,null,"Typ/Klass"]
[null,null,null,"Typ/Klass"]
[null,null,null,"SFPv kw/m³/s",null,{"$f":"IF(F51=0,0,(Q35+Q15)/F51)","v":0}]
[null,null,null,null,null,{"$f":"IF(I39>I19,I39,I19)/1000","v":0}]
[null,null,null,null,null,null,null,null,null,"*Obligatoriskt fält för att uppfylla SFS 1991:1273 med ändringar "]
[null,null,null,null,null,null,null,null,null,"  t.o.m. SFS 2006:1296"]
[null,null,null,null,null,null,null,null,null,"Fyll i alla gråa fält för att beräkna SFPv"]

{"sheet":"K1","index":5,"n_rows":49,"n_cols":23,"rows_kept":49,"cut":false,"hidden":false,"merged":[[5,4,5,9],[5,10,5,16],[5,17,5,21],[5,22,6,22],[6,4,6,9],[6,10,6,16],[6,17,6,21],[7,3,10,3],[7,4,7,9],[7,10,7,16],[7,17,7,21],[8,4,8,9],[8,10,8,16],[8,17,8,21],[9,4,9,7],[9,8,9,11],[9,12,9,16],[10,4,10,7],[10,8,10,11],[10,12,10,16],[12,4,12,13],[12,14,12,15],[12,17,12,22],[13,4,13,13],[13,14,13,22],[14,4,14,13],[14,14,14,22],[16,4,16,5],[16,6,16,7],[16,8,16,9],[16,10,16,11],[16,12,16,13],[16,15,16,16],[16,17,16,18],[16,19,16,20],[16,22,17,22],[17,4,17,5],[17,6,17,7],[17,8,17,9],[17,10,17,11],[17,12,17,13],[17,15,17,16],[17,17,17,18],[17,19,17,20],[18,4,18,5],[18,6,18,7],[18,8,18,9],[18,10,18,11],[18,12,18,13],[18,15,18,16],[18,17,18,18],[18,19,18,20],[19,4,19,5],[19,6,19,7],[19,8,19,9],[19,10,19,11],[19,12,19,13],[19,15,19,16],[19,17,19,18],[19,19,19,20],[20,4,20,5],[20,6,20,7],[20,8,20,9],[20,10,20,11],[20,12,20,13],[20,15,20,16],[20,17,20,18],[20,19,20,20],[21,4,21,5],[21,6,21,7],[21,8,21,9],[21,10,21,11],[21,12,21,13],[21,15,21,16],[21,17,21,18],[21,19,21,20],[22,4,22,5],[22,6,22,7],[22,8,22,9],[22,10,22,11],[22,12,22,13],[22,15,22,16],[22,17,22,18],[22,19,22,20],[23,4,23,5],[23,6,23,7],[23,8,23,9],[23,10,23,11],[23,12,23,13],[23,15,23,16],[23,17,23,18],[23,19,23,20],[24,4,24,5],[24,6,24,7],[24,8,24,9],[24,10,24,11],[24,12,24,13],[24,15,24,16],[24,17,24,18],[24,19,24,20],[25,4,25,5],[25,6,25,7],[25,8,25,9],[25,10,25,11],[25,12,25,13],[25,15,25,16],[25,17,25,18],[25,19,25,20],[26,4,26,5],[26,6,26,7],[26,8,26,9],[26,10,26,11],[26,12,26,13],[26,15,26,16],[26,17,26,18],[26,19,26,20],[27,4,27,5],[27,6,27,7],[27,8,27,9],[27,10,27,11],[27,12,27,13],[27,15,27,16],[27,17,27,18],[27,19,27,20],[28,4,28,5],[28,6,28,7],[28,8,28,9],[28,10,28,11],[28,12,28,13],[28,15,28,16],[28,17,28,18],[28,19,28,20],[29,4,29,5],[29,6,29,7],[29,8,29,9],[29,10,29,11],[29,12,29,13],[29,15,29,16],[29,17,29,18],[29,19,29,20],[30,4,30,5],[30,6,30,7],[30,8,30,9],[30,10,30,11],[30,12,30,13],[30,15,30,16],[30,17,30,18],[30,19,30,20],[31,4,31,5],[31,6,31,7],[31,8,31,9],[31,10,31,11],[31,12,31,13],[31,15,31,16],[31,17,31,18],[31,19,31,20],[32,4,32,5],[32,6,32,7],[32,8,32,9],[32,10,32,11],[32,12,32,13],[32,15,32,16],[32,17,32,18],[32,19,32,20],[33,4,33,5],[33,6,33,7],[33,8,33,9],[33,10,33,11],[33,12,33,13],[33,15,33,16],[33,17,33,18],[33,19,33,20],[34,4,34,5],[34,6,34,7],[34,8,34,9],[34,10,34,11],[34,12,34,13],[34,15,34,16],[34,17,34,18],[34,19,34,20],[36,17,36,18],[36,19,36,20],[35,4,35,5],[35,6,35,7],[35,8,35,9],[35,10,35,11],[35,12,35,13],[35,15,35,16],[35,17,35,18],[35,19,35,20],[36,4,36,5],[36,6,36,7],[36,8,36,9],[36,10,36,11],[36,12,36,13],[36,15,36,16],[50,4,50,7],[50,10,50,15],[50,18,50,22],[41,4,41,5],[41,6,41,22],[37,12,37,13],[37,15,37,16],[42,4,42,5],[42,6,42,22],[43,4,43,5],[43,6,43,22],[44,4,44,7],[44,10,44,22],[37,17,37,18],[37,19,37,20],[39,4,39,5],[39,6,39,22],[40,4,40,5],[40,6,40,22],[37,4,37,5],[37,6,37,7],[37,8,37,9],[37,10,37,11],[45,4,46,7],[45,10,45,17],[45,18,45,22],[46,10,46,17],[46,18,46,22],[47,10,47,17],[48,4,48,7],[48,10,48,17],[49,4,49,7],[49,10,49,15]]}
[]
[]
[]
[]
[]
[null,null,null,null,"Klimat",null,null,null,null,null,"Referensnummer",null,null,null,null,null,null,"Systemnummer",null,null,null,null,"K1"]
[null,null,null,null,null,null,null,null,null,null,{"$f":"A_Blankett!I5","v":0}]
[null,null,null,"L1","Fastighetsbeteckning",null,null,null,null,null,"Byggnadsnamn",null,null,null,null,null,null,"Byggnadsnr",null,null,null,null,"Sidnr."]
[null,null,null,null,{"$f":"A_Blankett!$D$11","v":0},null,null,null,null,null,{"$f":"A_Blankett!$D$19","v":0},null,null,null,null,null,null,{"$f":"A_Blankett!$F$19","v":0}]
[null,null,null,null,"Aggregatbenämning",null,null,null,null,null,null,null,"Ritning",null,null,null,null,null,null,null,null,null,"Datum"]
[]
[]
[]
[]
[]
[]
[null,null,null,"L2",null,null,null,null,"Tempratur",null,"CO2",null,"RH",null,null,"Fukt",null,"CO2",null,"Radon",null,"Ta bort","Anm."]
[null,null,null,null,"Rum. nr.",null,"Benämning",null,"Vistelsezon",null,"Rummet",null,"Rummet",null,null,"g/m3",null,"Frånluft",null,null,null,"kol"]
[null,null,null,1]
[null,null,null,2]
[null,null,null,3]
[null,null,null,4]
[null,null,null,5]
[null,null,null,6]
[null,null,null,7]
[null,null,null,8]
[null,null,null,9]
[null,null,null,10]
[null,null,null,11]
[null,null,null,12]
[null,null,null,13]
[null,null,null,14]
[null,null,null,15]
[null,null,null,16]
[null,null,null,17,null,null,null,null,null,null," "]
[null,null,null,18]
[null,null,null,19]
[null,null,null,20]
[]
[null,null,null,null,"Anm."]
[]
[]
[]
[]
[null,null,null,null,"Mättekniker"]
[]
[]
[]
[null,null,null,null,"Namnteckning"]

{"sheet":"C1","index":6,"n_rows":53,"n_cols":13,"rows_kept":53,"cut":false,"hidden":false,"merged":[[18,2,19,2],[2,3,2,6],[42,5,43,11],[36,5,37,11],[1,7,1,9],[1,10,1,11],[1,12,2,12],[2,10,2,11],[34,12,35,12],[30,12,31,12],[32,12,33,12],[16,12,17,12],[38,5,39,11],[38,12,39,12],[22,12,23,12],[24,12,25,12],[26,12,27,12],[8,12,9,12],[2,7,2,9],[36,2,37,2],[36,3,37,4],[32,2,33,2],[32,3,33,4],[20,3,21,4],[20,5,21,11],[22,3,23,4],[22,5,23,11],[30,5,31,11],[28,2,29,2],[28,3,29,4],[34,2,35,2],[34,3,35,4],[34,5,35,11],[32,5,33,11],[30,2,31,2],[30,3,31,4],[26,3,27,4],[26,5,27,11],[24,3,25,4],[24,5,25,11],[26,2,27,2],[28,5,29,11],[46,2,47,2],[46,3,47,4],[46,5,47,11],[44,5,45,11],[40,12,41,12],[44,12,45,12],[38,2,39,2],[38,3,39,4],[52,2,53,2],[52,3,53,4],[40,2,41,2],[40,3,41,4],[42,2,43,2],[42,3,43,4],[50,2,51,2],[48,2,49,2],[48,3,49,4],[44,2,45,2],[36,12,37,12],[40,5,41,11],[28,12,29,12],[44,3,45,4],[48,5,49,11],[48,12,49,12],[54,3,54,6],[50,3,51,4],[50,5,51,11],[52,5,53,11],[52,12,53,12],[46,12,47,12],[10,2,11,2],[10,3,11,4],[18,3,19,4],[16,2,17,2],[16,3,17,4],[24,2,25,2],[22,2,23,2],[20,2,21,2],[50,12,51,12],[12,5,13,11],[12,12,13,12],[20,12,21,12],[18,5,19,11],[18,12,19,12],[16,5,17,11],[42,12,43,12],[14,2,15,2],[14,3,15,4],[14,5,15,11],[14,12,15,12],[12,2,13,2],[12,3,13,4],[10,5,11,11],[10,12,11,12],[8,2,9,2],[8,3,9,4],[8,5,9,11],[7,3,7,4],[7,5,7,11],[5,11,5,12],[4,11,4,12],[5,3,5,7],[5,8,5,9],[4,2,5,2]]}
[]
[null,null,null,null,null,null,null,"Referensnummer",null,null,"Systemnummer",null,"C1"]
[null,null,null,"Anmärkning",null,null,null,{"$f":"A_Blankett!$I$5","v":0}]
[]
[null,null,"C1","Fastighetsbeteckning",null,null,null,null,"Internt byggnadsnr",null,"System(S, F, FT, FTX,T,FX)","Bes kat(0-2)"]
[null,null,null,{"$f":"A_Blankett!$D$11","v":0},null,null,null,null,{"$f":"A_Blankett!$F$19","v":0}]
[]
[null,null,"C2","Pos",null,"Anmärkningar",null,null,null,null,null,null,"Utfall"]
[null,null,1]
[]
[null,null,2]
[]
[null,null,3]
[]
[null,null,4]
[]
[null,null,5]
[]
[null,null,6]
[]
[null,null,7]
[]
[null,null,8]
[]
[null,null,9]
[]
[null,null,10]
[]
[null,null,11]
[]
[null,null,12]
[]
[null,null,13]
[]
[null,null,14]
[]
[null,null,15]
[]
[null,null,16]
[]
[null,null,17]
[]
[null,null,18]
[]
[null,null,19]
[]
[null,null,20]
[]
[null,null,21]
[]
[null,null,22]
[]
[null,null,23]

{"sheet":"D1","index":7,"n_rows":52,"n_cols":13,"rows_kept":52,"cut":false,"hidden":false,"merged":[[2,7,2,9],[2,10,2,11],[2,12,3,12],[3,7,3,9],[15,11,16,12],[17,11,18,12],[8,11,8,12],[3,10,3,11],[5,11,5,12],[6,11,6,12],[11,11,12,12],[13,11,14,12],[33,11,34,12],[27,11,28,12],[29,11,30,12],[19,11,20,12],[21,11,22,12],[31,11,32,12],[29,5,30,10],[25,11,26,12],[23,3,24,4],[25,3,26,4],[21,3,22,4],[23,11,24,12],[27,3,28,4],[29,3,30,4],[15,2,16,2],[17,2,18,2],[19,2,20,2],[21,2,22,2],[23,2,24,2],[25,2,26,2],[5,2,6,2],[9,2,10,2],[11,2,12,2],[13,2,14,2],[51,3,52,4],[53,3,53,4],[53,5,53,10],[51,5,52,10],[49,5,50,10],[43,2,44,2],[47,2,48,2],[43,3,44,4],[47,5,48,10],[51,2,52,2],[45,3,46,4],[43,5,44,10],[27,2,28,2],[29,2,30,2],[33,2,34,2],[41,2,42,2],[45,2,46,2],[31,2,32,2],[35,2,36,2],[39,2,40,2],[37,2,38,2],[41,5,42,10],[49,2,50,2],[47,3,48,4],[35,3,36,4],[37,3,38,4],[39,3,40,4],[31,5,32,10],[35,5,36,10],[31,3,32,4],[33,3,34,4],[41,3,42,4],[49,3,50,4],[53,11,53,12],[9,11,10,12],[9,5,10,10],[11,5,12,10],[13,5,14,10],[15,5,16,10],[17,5,18,10],[35,11,36,12],[37,11,38,12],[43,11,44,12],[41,11,42,12],[33,5,34,10],[39,5,40,10],[37,5,38,10],[23,5,24,10],[25,5,26,10],[21,5,22,10],[51,11,52,12],[49,11,50,12],[39,11,40,12],[47,11,48,12],[45,11,46,12],[27,5,28,10],[45,5,46,10],[3,3,3,6],[6,3,6,6],[6,7,6,9],[19,5,20,10],[8,3,8,4],[8,5,8,10],[13,3,14,4],[15,3,16,4],[17,3,18,4],[19,3,20,4],[9,3,10,4],[11,3,12,4]]}
[]
[]
[null,null,null,null,null,null,null,"Referensnummer",null,null,"Systemnummer",null,"D1"]
[null,null,null,"Åtgärdsblankett",null,null,null,{"$f":"A_Blankett!$I$5","v":0}]
[]
[null,null,"D1","Fastighetsbeteckning",null,null,null,"Internt byggnadsnr",null,null,"Systemtyp (S, F, FT, FTX,T, FX)","Bes kat(0-2)"]
[null,null,null,{"$f":"A_Blankett!$D$11","v":0},null,null,null,{"$f":"A_Blankett!$F$19","v":0}]
[]
[null,null,"D2","Pos",null,"Anmärkningar",null,null,null,null,null,"Kostnad kr"]
[null,null,1]
[]
[null,null,2]
[]
[null,null,3]
[]
[null,null,4]
[]
[null,null,5]
[]
[null,null,6]
[]
[null,null,7]
[]
[null,null,8]
[]
[null,null,9]
[]
[null,null,10]
[]
[null,null,11]
[]
[null,null,12]
[]
[null,null,13]
[]
[null,null,14]
[]
[null,null,15]
[]
[null,null,16]
[]
[null,null,17]
[]
[null,null,18]
[]
[null,null,19]
[]
[null,null,20]
[]
[null,null,21]
[]
[null,null,22]

{"sheet":"Intyg_Mall","index":8,"n_rows":20,"n_cols":10,"rows_kept":20,"cut":false,"hidden":false,"merged":[[3,10,22,10],[4,4,4,9],[5,4,5,9],[6,4,6,9],[13,7,13,9],[8,7,8,9],[16,7,16,8],[11,4,11,9],[3,6,3,9],[15,4,15,5],[8,4,8,6],[7,4,7,6],[7,7,7,9],[13,4,13,5],[14,4,14,5],[3,3,22,3],[9,4,9,9],[17,4,17,9],[18,4,18,9],[16,4,16,5],[3,4,3,5],[12,4,12,9],[14,7,14,9],[19,4,22,9]]}
[]
[]
[null,null,"A_blankett"]
[null,null,null,null,"INTYG"]
[null,null,null,null,"Obligatorisk funktionskontroll av ventilationssystem (OVK)"]
[null,null,null,null,"Enligt PBF kap 5, BFS 2011:16 (OVK) och BFS 2012:7 (OVKAR) med ändringar "]
[null,null,null,null,"utförts på denna byggnad"]
[null,null,null,null,"Fastighetsbeteckning",null,null,"Adress"]
[null,null,null,null,{"$f":"_xlfn.SINGLE(IFERROR(INDIRECT(C3&\"!D11\"),\"\"))","v":0},null,null,{"$f":"A_Blankett!$H$11","v":0}]
[null,null,null,null,"Systemnummer"]
[null,null,null,null,{"$f":"IFERROR(INDIRECT(C3&\"!k6\"),\"\")","v":0}]
[null,null,null,null,"Besiktningsrtesultat                                          Nästa ordinarie besiktning"]
[]
[null,null,null,null,"Besiktningsman",null,"Besiktningsdatum","Namnteckning"]
[null,null,null,null,{"$f":"A_Blankett!$D$49","v":0},null,{"$f":"A_Blankett!$F$23","v":""}]
[null,null,null,null,"Företag",null,"Behörighetsnivå","Cert.organ",null,"Cert.nr"]
[null,null,null,null,{"$f":"A_Blankett!$D$51","v":0},null,{"$f":"A_Blankett!$J$53","v":0},{"$f":"A_Blankett!$D$53","v":0},null,{"$f":"A_Blankett!$F$53","v":0}]
[]
[null,null,null,null,"Protokoll finns att tillgå hos byggnadens ägare och hos kommunens byggnadsnämnd"]
[null,null,null,null,"Anm."]

{"sheet":"Checklista","index":9,"n_rows":112,"n_cols":16,"rows_kept":112,"cut":false,"hidden":false,"merged":[]}
[]
[]
[null,"Förflyttning i Checklistan sker genom att använda piltangeterna! Utskrift = Första sidan = sid 1 osv."]
[]
[]
[]
[]
[]
[null,null,null,"Exempel på checklista",null,null,null,null,null,null,null,null,null,null,3,"FUNKTIONER."]
[]
[null,null,null,null,null,null,null,null,null,null,null,null,null,null,"3.1.1","Filterdel."]
[null,null,null,null,null,null,null,null,null,null,null,null,null,null,null,"Här kontrolleras bland annat att filterramar tätar mot infästningsanordningar och"]
[null,null,null,null,null,null,null,null,null,null,null,null,null,null,null,"anslutande luckor."]
[null,null,null,"Underpositioner till B-formulärets respektive pos. 1.1-5;  2.1-10;  3.1-10 och 4.1-6.",null,null,null,null,null,null,null,null,null,null,null,"Kostsamma rensningsåtgärder kan undvikas om noggrannhet iakttages vid denna del"]
[null,null,null,null,null,null,null,null,null,null,null,null,null,null,null,"av kontrollen."]
[null,null,null,"Det är viktigt att särskilja B-formulärets respektive pos. Ex.vis bedöms endast föroreningar under"]
[null,null,null,"pos 2 eftersom funktioner som otäta filterramar, spjäll eller felaktiga styrfunktioner redovisas under",null,null,null,null,null,null,null,null,null,null,"3.2.1","Batterier."]
[null,null,null,"pos. 3. Likaledes kommer ex.vis ett avslitet kilrep mellan motor och fläkt att resultera i uteblivet luft-",null,null,null,null,null,null,null,null,null,null,null,"Pos. 3.2.1, 3.3.1, 3.4.1 och 3.5.1 kontrolleras i förekommande fall i samfunktion."]
[null,null,null,"flöde som redovisas under pos. 3.7"]
[null,null,null,null,null,null,null,null,null,null,null,null,null,null,"3.3.1","VVX."]
[null,null,null,null,null,null,null,null,null,null,null,null,null,null,null,"Pos. 3.2.1, 3.3.1, 3.4.1 och 3.5.1 kontrolleras i förekommande fall i samfunktion."]
[null,null,null,1,"HANDLINGAR."]
[null,null,null,null,null,null,null,null,null,null,null,null,null,null,"3.4.1","Spjäll."]
[null,null,null,null,null,null,null,null,null,null,null,null,null,null,null,"Pos. 3.2.1, 3.3.1, 3.4.1 och 3.5.1 kontrolleras i förekommande fall i samfunktion."]
[null,null,null,"1.1.1  ","Ritningar."]
[null,null,null,null,"För att normalt kunna genomföra en OVK-besiktning behövs visst underlag för att",null,null,null,null,null,null,null,null,null,"3.5.1","Styr / Regler / Övervakning."]
[null,null,null,null,"kunna definiera och systembestämma tillhörighet för respektive aggregat och fläkt.",null,null,null,null,null,null,null,null,null,null,"Pos. 3.2.1, 3.3.1, 3.4.1 och 3.5.1 kontrolleras i förekommande fall i samfunktion."]
[]
[null,null,null,null,null,null,null,null,null,null,null,null,null,null,"3.6.1","Fläktar."]
[null,null,null,"1.2.1","DU instruktioner.",null,null,null,null,null,null,null,null,null,null,"Här kontrolleras samtliga i fläkten ingående komponenter med speciell uppmärksamhet."]
[null,null,null,null,"Bör vara av sådan kvalité att utbildad personal kan sköta, driva och felsöka så att",null,null,null,null,null,null,null,null,null,null,"T.ex. på att det mellan fläkt och höljen kan finnas dukstosar eller andra "]
[null,null,null,null,"ventilationssystemet uppfyller normkrav.",null,null,null,null,null,null,null,null,null,null,"vibrationsdämpande anordningar som kan vara defekta så att luften endast cirkulerar "]
[null,null,null,null,"För enklare system bör instruktioner ej vara skrivna i alltför tekniska termer utan ",null,null,null,null,null,null,null,null,null,null,"inom aggregat eller i fläktrum. Det bör i detta sammanhang påpekas att äldre aggregat "]
[null,null,null,null,"anpassas efter användarna.",null,null,null,null,null,null,null,null,null,null,"och fläktar kan vara av hög kvalité och i många fall kan återställas i gott skick "]
[null,null,null,null,null,null,null,null,null,null,null,null,null,null,null,"med enkla åtgärder"]
[null,null,null,null,null,null,null,null,null,null,null,null,null,null,null,"Jämför här med grundförutsättningen för OVK ”fungera i ursprungligt skick”."]
[null,null,null,"1.3.1","Föregående OVK-protokoll."]
[null,null,null,null,"Om detta är tillgängligt och utfört enligt de regler som gäller för OVK-besiktningar",null,null,null,null,null,null,null,null,null,"3.7.1","Luftflöden."]
[null,null,null,null,"kan systembestämning underlättas.",null,null,null,null,null,null,null,null,null,null,"Observera skrivningen i pos. 1.4.1 och 1.5.1  Luftflöden kan av olika skäl ha projekterats "]
[null,null,null,null,null,null,null,null,null,null,null,null,null,null,null,"för högre flöden än normerna kräver.     "]
[null,null,null,null,null,null,null,null,null,null,null,null,null,null,null,"Konferensrum, kontor, klassrum mm som används av flera personer än vad som är avsett "]
[null,null,null,"1.4.1","Projekterade värden / luftflödesprotokoll.",null,null,null,null,null,null,null,null,null,null,"noteras och delges normalt till uppdragsgivaren."]
[null,null,null,null,"Om dessa saknas skall av i SFS 1991:1273 och  Plan och Bygg Lagen, tillämpliga "]
[null,null,null,null,"föreskrifter / bestämmelser samt gällande föreskrifter i, t.ex. SBN tillämpas.",null,null,null,null,null,null,null,null,null,"3.8.1","Kanaler."]
[null,null,null,null,null,null,null,null,null,null,null,null,null,null,null,"Här  anges bland annat skador på kanaler som påverkar luftflöden och avsedda"]
[null,null,null,null,null,null,null,null,null,null,null,null,null,null,null,"funktioner."]
[null,null,null,"1.5.1","Övrigt."]
[null,null,null,null,"Här kan anges avvikande / kompletterande underlag samt eventuella dispenser.",null,null,null,null,null,null,null,null,null,"3.9.1","Don."]
[null,null,null,null,null,null,null,null,null,null,null,null,null,null,null,"Här kan anges felaktiga don ex.vis direktanslutna köks- och WCfläktar *samt ventiler"]
[null,null,null,null,null,null,null,null,null,null,null,null,null,null,null,"som hindrar eller stryper luftflöden och fria areor jämfört med gällande bestämmelser"]
[null,null,null,null,null,null,null,null,null,null,null,null,null,null,null,"för självdragssystem. "]
[null,null,null,null,null,null,null,null,null,null,null,null,null,null,null,"*Ur besiktningssynpunkt betraktas dessa som ”don” då de normalt är avstängda."]
[]
[null,null,null,null,null,null,null,null,null,null,null,null,null,null,"3.10.1","Övrigt."]
[null,null,null,null,null,null,null,null,null,null,null,null,null,null,null,"Notera vid behov övriga väsentliga iakttagelser t.ex att brandsäkerhetskrav uppfylles."]
[null,null,null,null,null,null,null,null,null,null,null,null,null,null,null,"Om kylanläggningar finnes och bedöms ingå i OVK-besiktningen kan denna redovisas."]
[]
[]
[]
[]
[]
[]
[]
[]
[]
[]
[null,null,null,"2.","FÖRORENINGAR.",null,null,null,null,null,null,null,null,null,"4. ","KLIMAT."]
[]
[]
[null,null,null,"2.1.1","Uteluftkanal.",null,null,null,null,null,null,null,null,null,"4.1.1","Temperatur."]
[null,null,null,null,"Här anges normalt föroreningar från intagsgaller till intagsöppning i aggregat / fläkt.",null,null,null,null,null,null,null,null,null,null,"Kontrollera stickprovsvis och med hänsyn till ”Brukarsynpunkter” tilluft-"]
[null,null,null,null,null,null,null,null,null,null,null,null,null,null,null,"och rumstemperaturer. Hög eller låg temperatur kan bero på felaktiga funktioner."]
[null,null,null,"2.2.1","Filterdel.",null,null,null,null,null,null,null,null,null,null,"Var uppmärksam på att uppvärmning av lokaler normalt ej sker med "]
[null,null,null,null,"Här anges t.ex. om filter är igensatta samt när filterbyte har skett och om vassa kanter",null,null,null,null,null,null,null,null,null,null,"ventilationssystemet."]
[null,null,null,null,"finnes som kan skära sönder filter vid byten.",null,null,null,null,null,null,null,null,null,null,"Notera om värme och kylsystem ej samkörs och delge detta till uppdragsgivaren."]
[null,null,null,null,"Om filter är igensatta eller av andra skäl ej ändamålsenliga kan och bör ej "]
[null,null,null,null,"luftflödesmätningar utföras d.v.s. ändamålet med besiktningen kan inte uppnås.",null,null,null,null,null,null,null,null,null,"4.2.1","Odör."]
[null,null,null,null,null,null,null,null,null,null,null,null,null,null,null,"Var observant på om det förekommer odörer från t.ex. kök, mögel, kemikalier, avlopp, "]
[null,null,null,"2.3.1","Batteri/-er.",null,null,null,null,null,null,null,null,null,null,"avgaser mm."]
[null,null,null,null,"Kontrollera att batterierna ej är igensatta av föroreningar eller skadade."]
[null,null,null,null,null,null,null,null,null,null,null,null,null,null,"4.3.1","Drag."]
[null,null,null,"2.4.1","VVX av olika typer.",null,null,null,null,null,null,null,null,null,null,"Här noteras ex.vis drag från tilluftdon, uteluftdon, fönster mm."]
[null,null,null,null,"Kontrollera att värmeväxlarna ej är igensatta av föroreningar."]
[null,null,null,null,null,null,null,null,null,null,null,null,null,null,"4.4.1","Ljud."]
[null,null,null,"2.5.1","Fläktdel.",null,null,null,null,null,null,null,null,null,null,"Om störande ljud, buller mm. finns som överstiger gällande normer / bestämmelser"]
[null,null,null,null,"Kontrollera att det är rent. ",null,null,null,null,null,null,null,null,null,null,"skall detta verifieras med ljudmätningar som utförts med godkänd metod."]
[]
[null,null,null,"2.6.1","Kanaler.",null,null,null,null,null,null,null,null,null,"4.5.1","Brukarsynpunkter."]
[null,null,null,null,"Om föroreningar finns i aggregat eller kanaler efter filterbankar kan ett funktionsfel ",null,null,null,null,null,null,null,null,null,null,"Här kan en hyresgästenkät ge värdefull information."]
[null,null,null,null,"finnas. Observera"," att repdrifter som slirar eller att remskivor som ej centrerats kan"]
[null,null,null,null,"orsaka kraftig försmutsning.",null,null,null,null,null,null,null,null,null,"4.6.1","Övrigt."]
[null,null,null,null,"Observera att frånluftkanaler i ett återluftsystem ur besiktningssynpunkt betraktas ",null,null,null,null,null,null,null,null,null,null,"Notera vid behov övriga väsentliga iakttagelser."]
[null,null,null,null,"som tilluftkanal och att WC och rökrum ej har anslutits."]
[]
[null,null,null,"2.7.1","Don."]
[null,null,null,null,"Försmutsade don ger ökade tryckfall och skall vara fria från föroreningar."]
[]
[null,null,null,"2.8.1","Rensningsmöjligheter och inspektionsmöjligheter."]
[null,null,null,null,"Olika metoder finns för att konstatera renhet och att rensa."]
[null,null,null,null,"För inspektion kan hål borras i samband med luftmängdsmätning och att ett optiskt"]
[null,null,null,null,"instrument kan användas. En så kallad ” Tittpinne ”."]
[null,null,null,null,"Behovet av antal rensluckor och placering avgöres av aktuell rensmetod om rensning "]
[null,null,null,null,"erfordras."]
[]
[null,null,null,"2.9.1","Fläktrum."]
[null,null,null,null,"Kontrollera att det är rent och att endast material som tillhör ventilationssystemet"]
[null,null,null,null,"finns i utrymmet. Fläktrummet är inte ett förråd, bland annat av brandsäkerhetsskäl."]
[null,null,null,null,"Här kontrolleras att golvbrunnar och andra avvattningsanordningar ej kan"]
[null,null,null,null,"tillföra avloppslukt och därmed föroreningar till ventilationssystemet."]
[]
[null,null,null,"2.10.1","Övrigt."]
[null,null,null,null,"Övriga utrymmen och komponenter kan redovisas här. "]

{"sheet":"Manual","index":10,"n_rows":163,"n_cols":8,"rows_kept":163,"cut":false,"hidden":false,"merged":[]}
[]
[]
[]
[]
[null,null,null,"Besiktningsprotokollets omfattning"]
[]
[null,null,null,"Ett besiktningsprotokoll för funktionskontroll av ventilationssystem, OVK,"]
[null,null,null,"enligt SFS 1991:1273 med ändringar SFS 2006:1296 skall minst innehålla:"]
[]
[null,null,null,1,"A-blankett för varje byggnad "]
[null,null,null,2,"B-blankett för varje ventilationssystem, dvs. samtliga aggregat/fläktar typ F eller T"]
[null,null,null,null,"med tillhörande uteluftintag/avluftsöppningar, som samkör och betjänar en byggnad "]
[null,null,null,null,"eller en avgrännsad byggnadsdel.(B1…B13)"]
[null,null,null,3,"C1-blankett, vid behov om utrymmet på B-blanketten ej räcker till (C1…Cn)"]
[null,null,null,4,"L1-blankett med uppgifter om luftflöde, driftstider och märkeffekter (L1…Ln)"]
[null,null,null,5,"Intyg om utförd besiktning"]
[]
[null,null,null,"Frivilliga tilläggsblanketter är:"]
[null,null,null,6,"D1-blankett för åtgärder för avhjälpande av anmärkningar"]
[null,null,null,7,"E1-blankett som är ett omfattande aggregatprotokoll, som bl.a. Beräknar SFP-värde "]
[]
[null,null,null,"Vid utskrift markeras de blad i boken som behövs. Skriv ej ut B_mallen!"]
[]
[null,null,null,"Instruktion för användaren"]
[]
[null,null,null,"Grundfil - bp090612.xls"]
[null,null,null,"Spara ner excelfilen i en egen mapp. Detta är din mallfil som du ej skall ändra i."]
[null,null,null,"Öppna mallfilen, ge den nytt namn och spara den en i en egen arbetsmapp"]
[]
[null,null,null,"Skydd"]
[null,null,null,"Excelfilens blad har ett lösenordsskydd som är anpassat till den tänkta användningen."]
[null,null,null,"Lösenordet lämnas ej ut."]
[null,null,null,"Alla funktioner som finns vid högerklick på kalkylbladsfliken är oskyddade liksom de gula fälten på"]
[null,null,null,"A-blanketten. Denna frihet kräver att du har tillräckliga kunskaper i Excel för att undvika"]
[null,null,null,"ofrivilliga misstag."]
[]
[null,null,null,"B_mallen"]
[null,null,null,"Denna blankett skall inte röras eller användas. Om du av misstag tar bort den så får du kopiera in "]
[null,null,null,"den på nytt från din sparade grundfil."]
[null,null,null,"Det är endast en mall som behövs för att skapa blanketter ( B1…B13)"]
[]
[null,null,null,"B-blanketter"]
[null,null,null,"Skapas genom klickning på knapp i A-blankettens A2-dels vänstermarginal."]
[null,null,null,"Kan tas bort genom klickning på knapp i A-blankettens A2-dels högermarginal"]
[null,null,null,"Det finns plats för 13 system.(B1…B13)"]
[]
[null,null,null,"Gula fält "]
[null,null,null,"Gula fält skall inte fyllas i. Detta sker automatisk enligt följande:"]
[]
[null,null,null,"A-blanketten"]
[null,null,null,"De gula A2-fälten fylls med data som hämtas från skapade B-blanketter"]
[]
[null,null,null,"Övriga blanketter."]
[null,null,null,"Gula fält fylls med data som hämtas från A-blankettens fält A1 respektive A3"]
[]
[null,null,null,"Logotyper"]
[null,null,null,"FunkiS logotyp på A-blanketten kan tas bort och även bytas ut till din egen, om du kör Excel 2007."]
[]
[null,null,null,"Nästa ordinarie besiktningsdatum"]
[null,null,null,"Den beräknas med hjälp av indata i cell för \"Bes kat(0-4)\" och \"Besiktningsdatum\"."]
[null,null,null,"Du måste ha funktionen \"EDATUM\" för att detta skall bli korrekt beräknat."]
[null,null,null,"Den finns i Excel 2007 och kan tilläggas från tidigare versioners programskiva."]
[null,null,null,"På menyn: välj Verktyg - Tillägg... och bocka för Analysis ToolPak och klicka Ok. "]
[null,null,null,"Sätt i MS Office CD-n och följ anvisningarna."]
[]
[null,null,null,"IFYLLANDE"]
[null,null,null,"Här nedan föreslås en lämplig turordning för ifyllande av data"]
[]
[null,null,null,"A1"]
[null,null,null,"Under A1 skall alltid de två första raderna fyllas i medan de tre följande används vid behov, dock "]
[null,null,null,"skall alltid \"Verksamhet\" och \"BRA\", bruksarea fyllas i. (Bruksarea är i detta sammanhang netto golvarea "]
[null,null,null,"exkl. ytterväggar men med eller utan innerväggar inräknade; i trapphus räknas varje våningsplan som "]
[null,null,null,"golvarea)"]
[]
[null,null,null,"A3"]
[null,null,null,"Fyll i sista delen med fakta om besiktningsmannen"]
[null,null,null,"(Här sker så småningom även underskriften av protokollet.)"]
[]
[null,null,null,"A2"]
[null,null,null,"Klicka på knappen i A2-delens vänstermarginal så får du fram B1-blanketten"]
[]
[null,null,null,"B1"]
[null,null,null,"När denna öppnas ser du att uppgifterna om referensnummer, fastighetsbeteckning, internt byggnadsnr"]
[null,null,null,"är ifyllda."]
[null,null,null,"Fyll i Systemnummer och välj in listdata för Systemtyp och Bes kat(0-4)"]
[null,null,null,"Fyll i Systemnummer och välj in listdata för Systemtyp och Bes kat(0-4)"]
[null,null,null,"Fyll i Besiktningsdatum"]
[null,null,null,"Gå tillbaka till A_blanketten och skapa nästa B-blankett ( B2 etc.), som du fyller i på samma sätt."]
[]
[null,null,null,"Markera lämpliga blanketter för utskrift för att använda som manus på fältet."]
[null,null,null,"Fyll i dina fältdata."]
[null,null,null,"Fyll i Utfall och Möjliga energibesparande åtgärder i systemet med hjälp av tillhörande listrutor."]
[]
[null,null,null,"Resultatet från besiktning väljer du in med listrutan för Resultat."]
[null,null,null,"Om du anger EG så skall du fylla i en datum i Ombesiktn.datum."]
[null,null,null,"(läs mer om detta i FunkiS  \"Vägledning OVK\")"]
[]
[null,null,null,"Gå tillbaka till A_blanketten"]
[null,null,null,"A2"]
[null,null,null,"Notering: skall omfatta vilka ventilationsregler som varit gällande vid systemets installation, t ex "]
[null,null,null,"BABS, SBN, Skolöverstyrelsens anvisningar, SPRI:s anvisningar m m."]
[null,null,null,"Noteringarna skall även ange vilka bygg- eller relationshandlingar som finns som underlag för "]
[null,null,null,"OVK:n."]
[null,null,null,"Om du inte får plats , kan du skapa ett nytt kalkylblad för detta. Ange namnet på detta under notering."]
[]
[null,null,null,"A3"]
[null,null,null,"Under A3 skall ett allmänt omdöme om de kontrollerade systemen ges. Det skall skrivas på ett sätt "]
[null,null,null,"som även lekmän kan förstå. De viktigaste resultaten skall anges. Lämpligen kan texten innehålla "]
[null,null,null,"uppgifter om dokumentation, funktioner, föroreningar, underhåll samt brukarsynpunkter (samt ev. "]
[null,null,null,"noterade brister i inomhusklimat)."]
[null,null,null,"Om du inte får plats , kan du skapa ett nytt kalkylblad för detta. Ange namnet på detta under notering."]
[null,null,null,"(Eventuellt kan detta extrablad användas både för notering och omdömet)"]
[]
[null,null,null,"Intyget"]
[null,null,null,"Data från A_blanketten finns ifyllda. (besiktningsdatum kan ändras)"]
[null,null,null,"Komplettera med systemnummer som passar för den plats där intyget skall anslås."]
[null,null,null,"Kopiera så många intyg som behövs för fastigheten (byggnaden). Medverka till uppsättande, om möjligt."]
[]
[null,null,null,"Gå tillbaka till respektive B-blankett"]
[]
[null,null,null,"B"]
[null,null,null,"Ange Bil.Beteckn. ( t.ex. C1-C2, D1, L1-L3, Intyg: 5st)"]
[]
[null,null,null,"Undertecknande, insändande"]
[null,null,null,"Görs på alla blanketter utom C1, D1 och E1"]
[null,null,null,"Läs i \" Vägledning OVK\""]
[]
[null,null,null,"C1","Kopiera vid behov. Byt i så fall namn på bladet och rätta längst upp till höger C1 till C2 etc."]
[null,null,null,"D1","Kopiera vid behov. Byt i så fall namn på bladet och rätta längst upp till höger D1 till D2 etc."]
[null,null,null,"L1","Kopiera vid behov. Byt i så fall namn på bladet och rätta längst upp till höger L1 till L2 etc."]
[]
[]
[null,null,null,"E1"]
[]
[null,null,null,"Data från A_blanketten finns ifyllda."]
[null,null,null,"Datum och systemnummer fylls i av besiktningsman."]
[null,null,null,"Om det finns fler ventilationsystem i byggnaden så kopiera E_1 och byt bladets namn till E_2 etc. "]
[null,null,null,"Rätta beteckningen i rutan med E till E1, E2 etc. (längst upp till höger)"]
[null,null,null,"I E2-delen skall obligatoriska fält markerade med * fyllas i om inte L1-blankett har använts."]
[]
[null,null,null,"Övriga fält:"]
[null,null,null,"Efter överenskommelse med beställare kan övriga fält fyllas i för att bl.a. förbereda och"]
[null,null,null,"underlätta energideklarationen."]
[]
[null,null,null,"Effektberäkning: ",null,"Resistiv effekt",null,"P = U x I"]
[]
[null,null,null,null,null,"Enfaseffekt",null,"P = U x I x cos f"]
[]
[null,null,null,null,null,"Trefaseffekt",null,"P = U x I x cos f x Ö3"]
[]
[null,null,null,null,null,"P","Effekt kW"]
[null,null,null,null,null,"U","Spänning V"]
[null,null,null,null,null,"I","Strömstyrka A"]
[null,null,null,null,null,"cos f","Effektfaktor"]
[null,null,null,null,null,"Ö3","Fasförskjutningen"]
[]
[]
[null,null,null,"Support"]
[null,null,null,"FunkiS har i dagsläget ingen support för detta besiktningsprotokoll, men vi "]
[null,null,null,"försöker naturligtvis hjälpa till i mån av tid om frågor skulle uppkomma."]
[]
[]
[null,null,null,"Copyright Funktionskontrollanterna i Sverige 2008"]

{"sheet":"Setup","index":11,"n_rows":40,"n_cols":20,"rows_kept":40,"cut":false,"hidden":false,"merged":[]}
[]
[null,null,"B-Mall, Dataverifieringslistor"]
[]
[]
[null,"Pos",null,"Utfall",null,"Systemtyp",null,"Fläkttyp",null,"Bes kat",null,"Resultat",null,"Energisparförslag",null,"Fläkthjul",null,"VVX typ",null,"Filter"]
[null,null,null,null,null,null,null,null,null,0,null,"G",null,"0. Inga energibesparande åtgärder"]
[null,"1.1",null,0,null,"S",null,"F",null,1,null,"EG",null,"1. Veckovis loggning för kartläggning av drift bör genomföras som underlag för åtgärder.",null,"Framåtböjda",null,"Roterande",null,"F6"]
[null,"1.2",null,1,null,"F",null,"T",null,2,null,"Ej besikt.",null,"2. Ändrade drifttider.",null,"Bakåtböjda",null,"Platt",null,"F7"]
[null,"1.3",null,2,null,"FT",null,"C",null,null,null,null,null,"3. Sänkning av tilluftstemperatur.",null,null,null,"Vätskekopplad",null,"F8"]
[null,"1.4",null,null,null,"FTX",null,"FTX",null,null,null,null,null,"4. Minskning av luftflöde genom byte av remskiva eller anpassning via frekvensstyrare.",null,null,null,"Kors",null,"F9"]
[null,"1.5",null,null,null,"T",null,null,null,null,null,null,null,"5. Minskning av luftflöde genom byte av fläktmotor."]
[null,null,null,null,null,"FX",null,null,null,null,null,null,null,"6. Behovsstyrning av luftflöde genom installation av hel- och halvfartsmotor."]
[null,"2.1",null,null,null,null,null,null,null,null,null,null,null,"7. Behovsstyrning av luftflöde genom installation av frekvensomformare."]
[null,"2.2",null,null,null,null,null,null,null,null,null,null,null,"8. Utbyte av fläktmotor för högre verkningsgrad."]
[null,"2.3",null,null,null,null,null,null,null,null,null,null,null,"9. Rengöring av värmeåtervinnare och andra aggregatdelar samt kanalsystem inkl. till och frånluftdon för att nå högre verkningsgrad."]
[null,"2.4",null,null,null,null,null,null,null,null,null,null,null,"10.Ändring av styr- och regler för värmeåtervinnare för att nå högre årsverkningsgrad,  t ex ändrade börvärden för avfrostning."]
[null,"2.5",null,null,null,null,null,null,null,null,null,null,null,"11.Nattventilation sommartid."]
[null,"2.6",null,null,null,null,null,null,null,null,null,null,null,"12.Utbyte av styr- och övervakning för att energieffektivare drift."]
[null,"2.7",null,null,null,null,null,null,null,null,null,null,null,"13.Komplettera isolering på kanaldelar i system med luftburen kyla."]
[null,"2.8",null,null,null,null,null,null,null,null,null,null,null,"14.Byt ut till och frånluftdon, anslutningslådor, böjar, etc för att uppnå mindre tryckfall."]
[null,"2.9",null,null,null,null,null,null,null,null,null,null,null,"15.Ändring av vätskeflöde i vätskekopplade värmeåtervinningssystem för att nå högre verkningsgrad."]
[null,"2.10",null,null,null,null,null,null,null,null,null,null,null,"16.Utbyte av frysskyddstillsatser i värmeåtervinningssystem för att nå högre verkningsgrad."]
[null,null,null,null,null,null,null,null,null,null,null,null,null,"17.Installation av värmeåtervinning med ventilationsvärmeväxlare."]
[null,"3.1",null,null,null,null,null,null,null,null,null,null,null,"18.Tätning av läckande kanal- eller aggregatdelar."]
[null,"3.2",null,null,null,null,null,null,null,null,null,null,null,"19.Tillvaratagande av kondensorvärme från kylmaskin."]
[null,"3.3",null,null,null,null,null,null,null,null,null,null,null,"20.Utnyttjande av frånluft som tilluft till garage eller annan lokal."]
[null,"3.4",null,null,null,null,null,null,null,null,null,null,null,"21.Installation av verkningsgradsmätare för värmeåtervinningssystem för kontroll av temperaturverkningsgrad."]
[null,"3.5",null,null,null,null,null,null,null,null,null,null,null,"22.Installation av flödesmätare, t ex Q-dysa för kontroll av luftflöde."]
[null,"3.6",null,null,null,null,null,null,null,null,null,null,null,"23.Ändring av felaktiga inställningar."]
[null,"3.7",null,null,null,null,null,null,null,null,null,null,null,"24.Ta bort fuktare t.ex i kombination med sänkt rumstemperatur."]
[null,"3.8",null,null,null,null,null,null,null,null,null,null,null,"25.Ta bort fuktare, minska omfattning genom att installera fuktare i de rum som erfordrar luftfuktning."]
[null,"3.9",null,null,null,null,null,null,null,null,null,null,null,"26.Injustera kanalsystem enl. proportionalitetsmetoden."]
[null,"3.10",null,null,null,null,null,null,null,null,null,null,null,"27.Byt ut elbatteri till vattenburet batteri och värmeväxlare."]
[null,null,null,null,null,null,null,null,null,null,null,null,null,"28.Anpassa luftflöden till gällande verksamhet."]
[null,"4.1",null,null,null,null,null,null,null,null,null,null,null,"29.Se till att temperaturreglering för ventilation och kyla ej motarbetar varandra."]
[null,"4.2",null,null,null,null,null,null,null,null,null,null,null,"30.Installera närvarogivare och VAV-spjäll för behovsstyrning."]
[null,"4.3",null,null,null,null,null,null,null,null,null,null,null,"31.Övrig åtgärd, specificera."]
[null,"4.4"]
[null,"4.5"]
[null,"4.6"]

{"sheet":"Flera intyg","index":12,"n_rows":20,"n_cols":10,"rows_kept":20,"cut":false,"hidden":false,"merged":[[3,3,22,3],[3,4,3,5],[3,6,3,9],[3,10,22,10],[4,4,4,9],[5,4,5,9],[6,4,6,9],[7,4,7,6],[7,7,7,9],[8,4,8,6],[8,7,8,9],[9,4,9,9],[11,4,11,9],[12,4,12,9],[13,4,13,5],[13,7,13,9],[18,4,18,9],[19,4,22,9],[14,4,14,5],[14,7,14,9],[15,4,15,5],[16,4,16,5],[16,7,16,8],[17,4,17,9]]}
[]
[]
[null,null,"A_blankett"]
[null,null,null,null,"INTYG"]
[null,null,null,null,"Obligatorisk funktionskontroll av ventilationssystem (OVK)"]
[null,null,null,null,"Enligt PBF kap 5, BFS 2011:16 (OVK) och BFS 2012:7 (OVKAR) med ändringar "]
[null,null,null,null,"utförts på denna byggnad"]
[null,null,null,null,"Fastighetsbeteckning",null,null,"Adress"]
[null,null,null,null,{"$f":"_xlfn.SINGLE(IFERROR(INDIRECT(C3&\"!D11\"),\"\"))","v":0},null,null,{"$f":"A_Blankett!$H$11","v":0}]
[null,null,null,null,"Systemnummer"]
[null,null,null,null,{"$f":"IFERROR(INDIRECT(C3&\"!k6\"),\"\")","v":0}]
[null,null,null,null,"Besiktningsrtesultat                                          Nästa ordinarie besiktning"]
[]
[null,null,null,null,"Besiktningsman",null,"Besiktningsdatum","Namnteckning"]
[null,null,null,null,{"$f":"A_Blankett!$D$49","v":0},null,{"$f":"A_Blankett!$F$23","v":""}]
[null,null,null,null,"Företag",null,"Behörighetsnivå","Cert.organ",null,"Cert.nr"]
[null,null,null,null,{"$f":"A_Blankett!$D$51","v":0},null,{"$f":"A_Blankett!$J$53","v":0},{"$f":"A_Blankett!$D$53","v":0},null,{"$f":"A_Blankett!$F$53","v":0}]
[]
[null,null,null,null,"Protokoll finns att tillgå hos byggnadens ägare och hos kommunens byggnadsnämnd"]
[null,null,null,null,"Anm."]